bitfinex-derivatives/quotes_ETHF0:USTF0_20250427
["timestamp","ask_amount","ask_price","bid_price","bid_amount"]
[1745757476226,1.5771,1802.2,1802.1,1.10946]
[1745757476428,1.10938,1802.3,1802.2,1.10939]
[1745757476665,1.10939,1802.2,1802.1,4.31722]
[1745757478123,1.612,1802.3,1802.1,3.2078]
[1745757478426,2.72136,1802.3,1802.2,1.10939]
[1745757478626,2.72136,1802.3,1802.2,1.93189]
[1745757479818,2.72136,1802.3,1802.2,0.8225]
[1745757480327,9.66968,1802.6,1802.2,1.93186]
[1745757480328,9.66973,1802.6,1802.2,1.93186]
[1745757480529,1.10933,1802.3,1802.2,1.93186]
[1745757481125,1.6609,1802.3,1802.2,1.93186]
[1745757481320,2.77023,1802.3,1802.2,1.93186]
[1745757482232,2.77023,1802.3,1802.2,0.8225]
[1745757482829,2.77023,1802.3,1802.2,1.93189]
[1745757483736,4.43428,1802.3,1801.9,3.2078]
[1745757483929,8.40164,1802.2,1801.7,45.7113]
[1745757484235,2.74588,1802.1,1802.0,1.10952]
[1745757485537,1.6364,1802.1,1802.0,1.10952]
[1745757485835,1.10941,1802.2,1802.1,1.10946]
[1745757486132,1.10939,1802.2,1802.1,1.10941]
[1745757486434,2.77188,1802.3,1801.9,2.77395]
[1745757486636,2.77188,1802.3,1802.2,1.10939]
[1745757487231,1.6625,1802.3,1802.2,1.10939]
[1745757487433,2.77183,1802.3,1802.2,1.10939]
[1745757487627,1.6625,1802.3,1802.2,1.10939]
[1745757488733,5.11819,1802.4,1802.1,0.8572]
[1745757488734,3.2078,1802.4,1802.3,1.10933]
[1745757488929,4.31707,1802.4,1802.2,1.10936]
[1745757489135,1.10933,1802.3,1802.2,1.10936]
[1745757489468,1.5638,1802.3,1802.2,1.10936]
[1745757491530,4.31707,1802.4,1802.3,1.10933]
[1745757492028,5.89887,1802.4,1802.3,1.10933]
[1745757492228,9.62087,1802.4,1802.3,1.10933]
[1745757493140,8.5116,1802.4,1802.3,1.10933]
[1745757493340,9.62087,1802.4,1802.3,1.10933]
[1745757494041,8.5116,1802.4,1802.3,1.10933]
[1745757494338,8.5116,1802.4,1802.3,1.95283]
[1745757494941,9.62087,1802.4,1802.3,1.95283]
[1745757496234,6.9298,1802.4,1802.3,1.95283]
[1745757496441,3.722,1802.4,1802.3,1.95283]
[1745757497141,5.94912,1802.5,1802.3,1.95283]
[1745757497142,2.74132,1802.5,1802.4,1.10927]
[1745757497342,5.94912,1802.5,1802.4,2.78117]
[1745757497543,5.94912,1802.5,1802.4,1.6719]
[1745757497843,5.94912,1802.5,1802.4,2.78117]
[1745757498140,9.67112,1802.5,1802.4,2.78117]
[1745757498968,9.67112,1802.5,1802.4,1.6719]
[1745757499340,5.94912,1802.5,1802.4,1.6719]
[1745757499642,4.8399,1802.5,1802.1,0.8572]
[1745757499834,3.2078,1802.3,1802.0,3.6371]
[1745757500035,1.10946,1802.1,1802.0,3.6371]
[1745757500233,1.10952,1802.0,1801.9,0.8052]
[1745757500439,2.82774,1802.0,1801.9,1.10958]
[1745757500633,1.7182,1802.0,1801.9,1.10958]
[1745757501141,2.82772,1802.0,1801.9,1.6411]
[1745757501542,1.7182,1802.0,1801.9,2.75068]
[1745757501744,2.82772,1802.0,1801.9,1.6411]
[1745757501944,2.82772,1802.0,1801.9,2.75068]
[1745757502240,1.10964,1801.8,1801.7,44.8606]
[1745757502437,1.10964,1801.8,1801.7,40.8]
[1745757502842,2.5697,1801.8,1801.5,0.8528]
[1745757503048,4.31756,1801.7,1801.5,1.96262]
[1745757503244,1.10985,1801.5,1801.1,10.61964752]
[1745757503448,1.10989,1801.4,1801.3,1.6483]
[1745757503644,1.10995,1801.3,1801.2,41.5831]
[1745757504132,1.10995,1801.3,1801.2,43.2314]
[1745757504340,3.64764,1801.4,1801.2,44.3414]
[1745757504846,1.10995,1801.3,1801.2,43.2314]
[1745757505048,2.5377,1801.4,1801.2,44.34141]
[1745757505246,1.6862,1801.3,1801.2,44.34141]
[1745757506048,2.79615,1801.3,1801.2,44.34141]
[1745757506447,1.6862,1801.3,1801.2,44.34141]
[1745757506847,3.2078,1801.5,1801.3,1.10995]
[1745757507043,1.10983,1801.5,1801.3,2.8408]
[1745757507446,1.10983,1801.5,1801.4,1.7309]
[1745757509651,3.2078,1801.5,1801.4,2.84079]
[1745757510042,4.31763,1801.5,1801.4,1.7309]
[1745757510946,1.10995,1801.3,1801.2,41.5831]
[1745757511139,1.10995,1801.3,1801.2,40.8]
[1745757511339,4.31775,1801.3,1801.2,40.8]
[1745757511850,5.98715,1801.3,1801.2,40.8]
[1745757512145,9.70915,1801.3,1801.2,40.8]
[1745757513350,5.98715,1801.3,1801.2,40.8]
[1745757514046,5.98715,1801.3,1801.2,42.4901]
[1745757515250,5.98715,1801.3,1801.2,43.60011]
[1745757515452,4.31775,1801.3,1801.2,43.60011]
[1745757515851,4.31775,1801.3,1801.2,42.4901]
[1745757517043,4.31775,1801.3,1801.2,43.60011]
[1745757517446,4.31775,1801.3,1801.2,42.4901]
[1745757517846,3.2078,1801.3,1801.2,43.60011]
[1745757518547,4.31775,1801.3,1801.2,43.60011]
[1745757519045,3.2078,1801.3,1801.2,43.60011]
[1745757521157,3.2078,1801.3,1801.2,47.32211]
[1745757524159,3.2078,1801.3,1801.2,43.60011]
[1745757525151,3.2078,1801.3,1801.2,47.32211]
[1745757525872,16.45934521,1802.6,1801.4,3.2078]
[1745757526059,16.45934521,1802.6,1802.5,4.31701]
[1745757526352,5.18013118,1802.6,1802.5,7.97101]
[1745757526558,2.41821118,1802.6,1802.5,12.97101]
[1745757526760,4.7788,1803.2,1803.1,1.10884]
[1745757526957,4.7788,1803.2,1802.9,3.2078]
[1745757527153,1.109,1802.9,1802.7,1.10908]
[1745757527457,1.10921,1802.5,1802.4,0.8485]
[1745757528354,4.83121,1802.5,1802.4,41.6485]
[1745757528752,4.83121,1802.5,1802.4,43.2676]
[1745757528957,3.722,1802.5,1802.4,43.2676]
[1745757529450,3.722,1802.5,1802.4,44.37687]
[1745757529451,5.4182,1802.5,1802.4,44.37687]
[1745757531752,6.52741,1802.5,1802.4,43.2676]
[1745757532159,5.4182,1802.5,1802.4,43.2676]
[1745757532462,6.52745,1802.5,1802.2,4.31719]
[1745757532661,1.5998,1802.4,1802.3,1.10933]
[1745757532862,1.5998,1802.4,1802.3,41.90933]
[1745757533055,5.3218,1802.4,1802.3,41.90933]
[1745757533256,5.3218,1802.4,1802.3,43.49543]
[1745757533962,3.722,1802.4,1802.3,43.49543]
[1745757534263,2.7685,1802.7,1802.5,1.10918]
[1745757534467,1.6594,1802.6,1802.5,1.10918]
[1745757534655,1.6594,1802.6,1802.5,2.81268]
[1745757534967,1.6594,1802.6,1802.4,3.2078]
[1745757534968,2.76855,1802.6,1802.4,4.31703]
[1745757535152,6.49055,1802.6,1802.4,3.2078]
[1745757535352,2.76861,1802.5,1802.4,3.2078]
[1745757536160,5.3814,1802.5,1802.4,4.31707]
[1745757536651,5.3814,1802.5,1802.4,3.2078]
[1745757536852,5.3814,1802.5,1802.4,4.31707]
[1745757537252,5.3814,1802.5,1802.4,3.2078]
[1745757537462,5.3814,1802.5,1802.4,4.904]
[1745757537771,6.49061,1802.5,1802.4,4.904]
[1745757538859,5.3814,1802.5,1802.4,6.01327]
[1745757539353,6.49061,1802.5,1802.4,4.904]
[1745757539760,5.3814,1802.5,1802.4,4.904]
[1745757539957,1.10958,1801.9,1801.6,0.27741041]
[1745757540163,1.1097,1801.7,1801.6,0.27741041]
[1745757540358,1.10976,1801.6,1801.5,0.2773]
[1745757540557,1.10995,1801.3,1801.2,42.4628]
[1745757540957,1.10995,1801.3,1801.2,40.8]
[1745757541154,6.51545,1801.3,1801.2,40.8]
[1745757541656,3.722,1801.3,1801.2,46.91001]
[1745757542164,3.2078,1801.4,1801.3,1.10995]
[1745757542462,3.2078,1801.4,1801.3,2.77275]
[1745757542861,1.6835,1801.7,1801.5,1.10977]
[1745757543066,2.79322,1801.7,1801.5,1.10977]
[1745757543265,2.79322,1801.7,1801.6,1.6761]
[1745757544051,1.10989,1801.4,1801.3,3.722]
[1745757544258,1.10995,1801.3,1801.2,40.8]
[1745757545057,6.42485,1801.3,1801.2,40.8]
[1745757546363,5.3149,1801.3,1801.2,43.57171]
[1745757546566,6.42485,1801.3,1801.2,42.4617]
[1745757547367,2.70285,1801.3,1801.2,42.4617]
[1745757547867,1.11012,1801.1,1800.9,4.31797]
[1745757548064,1.11012,1801.1,1800.9,5.97967]
[1745757548363,4.8007,1801.3,1801.0,40.8]
[1745757548567,1.1101,1801.1,1801.0,40.8]
[1745757549564,1.11005,1801.2,1801.0,41.91012]
[1745757549797,2.75695,1801.2,1801.0,43.53512]
[1745757549971,1.11007,1801.1,1801.0,42.425]
[1745757550168,2.75697,1801.1,1801.0,42.425]
[1745757551266,1.6469,1801.1,1801.0,43.53513]
[1745757551462,2.75697,1801.1,1801.0,42.425]
[1745757554979,1.1102,1800.9,1800.8,2.4891]
[1745757555170,1.1102,1800.9,1800.8,3.59936]
[1745757555676,1.6627,1801.0,1800.9,1.1102]
[1745757555868,1.6627,1801.0,1800.9,2.6808]
[1745757556068,2.77283,1801.0,1800.9,1.5706]
[1745757557570,1.1102,1800.9,1800.8,41.6391]
[1745757557765,2.7729,1800.9,1800.8,43.2097]
[1745757558177,1.1102,1800.9,1800.8,43.2097]
[1745757559067,1.1102,1800.9,1800.8,44.31996]
[1745757559274,1.1102,1800.9,1800.8,43.2097]
[1745757560770,1.1102,1800.9,1800.7,0.8068]
[1745757560771,1.11026,1800.8,1800.7,0.8068]
[1745757561079,1.11038,1800.6,1800.5,0.8654]
[1745757561278,1.11038,1800.6,1800.5,2.4387]
[1745757563269,1.6671,1800.7,1800.5,3.5491]
[1745757563270,2.77746,1800.7,1800.5,3.5491]
[1745757563476,2.77742,1800.7,1800.6,1.5733]
[1745757565779,4.8749,1800.7,1800.4,44.8483]
[1745757566079,1.11044,1800.5,1800.4,43.372]
[1745757566478,2.82084,1800.5,1800.4,43.372]
[1745757566886,2.82084,1800.5,1800.4,40.8]
[1745757567179,9.75064,1800.5,1800.4,40.8]
[1745757568286,3.722,1800.5,1800.4,41.9105]
[1745757568584,4.83244,1800.5,1800.4,40.8]
[1745757568783,3.722,1800.5,1800.4,40.8]
[1745757568982,4.83244,1800.5,1800.4,42.3934]
[1745757569182,1.11044,1800.5,1800.4,42.3934]
[1745757569686,7.4187,1800.6,1800.4,42.3934]
[1745757569873,7.4187,1800.6,1800.5,1.5934]
[1745757570175,1.1104,1800.6,1800.5,1.5934]
[1745757570784,3.2078,1800.7,1800.5,1.5934]
[1745757570982,3.2078,1800.9,1800.8,1.11026]
[1745757571186,3.2078,1800.9,1800.8,4.83226]
[1745757572180,3.2078,1800.9,1800.8,1.11026]
[1745757572387,1.1101,1801.1,1800.9,1.11015]
[1745757572585,1.1101,1801.1,1800.7,4.8796]
[1745757572586,1.1101,1801.1,1801.0,2.5322]
[1745757573288,4.8321,1801.1,1801.0,2.5322]
[1745757574092,3.722,1801.1,1801.0,3.64233]
[1745757574310,8.14986,1801.2,1801.0,4.47093]
[1745757574480,8.14986,1801.2,1801.1,1.707]
[1745757575081,9.75726,1801.2,1801.1,1.707]
[1745757576089,9.75726,1801.2,1801.1,2.81707]
[1745757576594,8.6472,1801.2,1801.1,2.81707]
[1745757576787,3.2078,1801.2,1801.1,2.81707]
[1745757578984,1.10999,1801.3,1801.2,1.11001]
[1745757579194,1.10999,1801.3,1801.2,2.83621]
[1745757579585,1.10989,1801.4,1801.3,1.1099]
[1745757579889,1.10989,1801.4,1801.3,2.7843]
[1745757580584,6.58537,1801.5,1801.4,1.10989]
[1745757580886,1.10989,1801.4,1801.3,1.1099]
[1745757581283,1.10992,1801.4,1801.3,1.10992]
[1745757582478,6.58535,1801.5,1801.4,1.10989]
[1745757582684,3.832,1801.5,1801.4,1.10989]
[1745757582993,4.3176,1801.6,1801.5,1.10983]
[1745757583292,3.56845,1801.7,1801.6,1.10976]
[1745757583802,4.94168,1801.8,1801.6,1.10976]
[1745757583982,3.832,1801.8,1801.5,4.31759]
[1745757584184,3.832,1801.8,1801.6,40.8]
[1745757584385,2.7383,1801.7,1801.6,40.8]
[1745757584677,2.7383,1801.7,1801.6,41.90976]
[1745757584919,1.1097,1801.7,1801.6,41.90976]
[1745757585090,1.1097,1801.7,1801.6,40.8]
[1745757585481,1.1097,1801.7,1801.6,41.90976]
[1745757585891,1.1097,1801.7,1801.6,40.8]
[1745757587092,1.1097,1801.7,1801.6,41.90976]
[1745757587494,6.58476,1801.8,1801.7,1.1097]
[1745757587691,6.58476,1801.8,1801.6,41.90972]
[1745757588093,6.58476,1801.8,1801.7,1.1097]
[1745757588593,6.58476,1801.8,1801.6,41.90972]
[1745757588790,6.58476,1801.8,1801.7,1.1097]
[1745757589092,6.58476,1801.8,1801.6,40.8]
[1745757589392,6.58476,1801.8,1801.6,41.90972]
[1745757590396,1.1097,1801.7,1801.6,41.90972]
[1745757590694,6.58479,1801.8,1801.6,41.90972]
[1745757591482,6.58479,1801.8,1801.7,1.1097]
[1745757591688,3.832,1801.8,1801.7,1.1097]
[1745757592191,3.2078,1802.4,1802.1,1.1094]
[1745757592390,2.81253,1802.3,1802.2,1.5667]
[1745757593095,6.53453,1802.3,1802.2,1.5667]
[1745757597695,3.722,1802.3,1802.2,1.5667]
[1745757597895,3.16728959,1802.3,1802.2,5.88389]
[1745757598093,1.10921,1802.5,1802.2,4.7745]
[1745757598296,1.10933,1802.4,1802.3,2.4464]
[1745757598496,1.10933,1802.4,1802.3,3.55573]
[1745757599501,2.81086,1802.5,1802.4,1.10927]
[1745757599792,2.81086,1802.5,1802.4,2.73837]
[1745757599998,2.81086,1802.5,1802.4,1.6291]
[1745757600197,5.4236,1802.5,1802.4,2.73837]
[1745757600498,4.83121,1802.5,1802.4,2.73837]
[1745757601306,1.10921,1802.5,1802.4,2.73837]
[1745757601996,1.10921,1802.5,1802.4,1.6291]
[1745757602196,2.83061,1802.5,1802.4,2.73837]
[1745757603101,1.7214,1802.5,1802.4,2.73837]
[1745757603301,2.83061,1802.5,1802.4,2.73837]
[1745757603502,2.83061,1802.5,1802.4,1.6291]
[1745757603704,2.83061,1802.5,1802.4,2.73837]
[1745757604398,1.10927,1802.4,1802.3,0.8173]
[1745757604609,2.72747,1802.4,1802.3,0.8173]
[1745757604803,2.72747,1802.4,1802.3,3.65923]
[1745757605603,2.72747,1802.4,1802.3,2.5499]
[1745757605804,2.72747,1802.4,1802.3,3.65923]
[1745757606107,6.44947,1802.4,1802.3,3.65923]
[1745757607108,6.44947,1802.4,1802.3,2.5499]
[1745757607410,1.10946,1802.1,1802.0,3.2078]
[1745757607800,1.10946,1802.1,1802.0,4.31732]
[1745757608013,1.10946,1802.1,1802.0,3.2078]
[1745757608201,4.83146,1802.1,1802.0,3.2078]
[1745757608808,4.83146,1802.1,1802.0,4.31732]
[1745757608999,4.83146,1802.1,1802.0,6.03642]
[1745757609201,2.7738,1802.0,1801.6,45.11753]
[1745757609404,1.10969,1801.8,1801.6,45.11752]
[1745757609707,1.10969,1801.8,1801.6,46.83662]
[1745757609911,1.6815,1801.9,1801.8,1.10964]
[1745757610309,1.10954,1802.0,1801.9,1.10958]
[1745757610508,3.5251,1802.1,1801.9,1.10958]
[1745757610699,8.39706,1802.1,1801.7,2.81358]
[1745757611007,1.10964,1801.9,1801.7,2.81357]
[1745757611399,1.5689,1802.0,1801.7,2.81357]
[1745757611599,1.10964,1801.8,1801.7,2.81357]
[1745757612709,1.10964,1801.8,1801.7,2.8136]
[1745757613002,1.10964,1801.8,1801.7,1.7039]
[1745757614707,2.76944,1801.8,1801.7,1.7039]
[1745757614902,1.1097,1801.7,1801.6,40.8]
[1745757615209,1.10976,1801.6,1801.5,1.6639]
[1745757615605,2.76956,1801.6,1801.5,42.4639]
[1745757615806,3.2078,1802.1,1801.5,44.0256]
[1745757616011,2.81514,1802.0,1801.8,1.10961]
[1745757616311,2.81514,1802.0,1801.6,4.7695]
[1745757616312,3.2078,1802.1,1801.9,1.5617]
[1745757616513,3.2078,1802.1,1802.0,2.77372]
[1745757616712,3.763,1802.2,1802.1,1.10946]
[1745757617009,3.763,1802.2,1802.1,1.5617]
[1745757617010,4.87239,1802.2,1802.1,1.5617]
[1745757617205,1.10939,1802.2,1802.1,1.5617]
[1745757617804,2.81499,1802.2,1802.1,1.5617]
[1745757618005,1.7056,1802.2,1802.1,2.67116]
[1745757618908,2.81499,1802.2,1802.1,2.67116]
[1745757619109,2.81499,1802.2,1802.1,1.5617]
[1745757619325,2.81499,1802.2,1802.1,2.67116]
[1745757621212,2.81499,1802.2,1802.1,1.5617]
[1745757621407,1.7056,1802.2,1802.1,2.67116]
[1745757621810,2.81499,1802.2,1802.1,1.5617]
[1745757622210,2.81499,1802.2,1802.1,2.67116]
[1745757622709,2.81499,1802.2,1802.1,1.5617]
[1745757623014,2.81499,1802.2,1802.1,2.67116]
[1745757623214,3.2078,1802.3,1802.1,2.67116]
[1745757623420,4.31713,1802.3,1802.2,1.674]
[1745757623903,6.02813,1802.3,1802.2,42.474]
[1745757624111,9.75013,1802.3,1802.2,42.474]
[1745757624718,6.54233,1802.3,1802.2,43.58339]
[1745757625416,5.433,1802.3,1802.2,43.58339]
[1745757625618,6.54233,1802.3,1802.2,43.58339]
[1745757626117,2.82033,1802.3,1802.2,42.474]
[1745757627211,6.54233,1802.3,1802.2,42.474]
[1745757628306,6.54233,1802.3,1802.2,43.58339]
[1745757629716,6.54233,1802.3,1802.2,42.474]
[1745757629906,6.54233,1802.3,1802.2,43.58339]
[1745757631923,6.54233,1802.3,1802.2,42.474]
[1745757634421,6.54233,1802.3,1802.2,43.58339]
[1745757635332,2.82033,1802.3,1802.2,43.58339]
[1745757636135,6.54233,1802.3,1802.2,43.58339]
[1745757637236,2.82033,1802.3,1802.2,43.58339]
[1745757638138,2.82033,1802.3,1802.2,42.474]
[1745757638639,2.82033,1802.3,1802.2,43.58339]
[1745757639441,1.10988,1801.5,1801.4,3.2078]
[1745757639630,1.10989,1801.4,1801.2,12.20121984]
[1745757639833,1.10989,1801.4,1801.3,54.15749752]
[1745757640336,1.10989,1801.4,1801.3,50.94969752]
[1745757640535,2.83427,1801.5,1801.3,50.94969752]
[1745757640727,2.83427,1801.5,1801.4,1.6257]
[1745757640931,1.10989,1801.4,1801.3,48.21184752]
[1745757641132,1.10989,1801.4,1801.3,49.83754752]
[1745757642842,1.10989,1801.4,1801.3,50.94749752]
[1745757643044,1.10989,1801.4,1801.3,42.4257]
[1745757643847,1.10989,1801.4,1801.3,43.53565]
[1745757644141,1.10987,1801.5,1801.3,47.25765]
[1745757644450,1.10987,1801.5,1801.4,1.6886]
[1745757647342,2.72937,1801.5,1801.4,1.6886]
[1745757648648,1.10987,1801.5,1801.4,1.6886]
[1745757649349,1.10987,1801.5,1801.4,2.79849]
[1745757649849,1.10987,1801.5,1801.4,1.6886]
[1745757650351,1.10987,1801.5,1801.4,2.79849]
[1745757650544,1.10987,1801.5,1801.4,1.6886]
[1745757651335,1.10969,1801.8,1801.4,12.67111]
[1745757651541,1.10969,1801.8,1801.7,1.1097]
[1745757652644,1.1097,1801.7,1801.6,2.79112]
[1745757653448,1.1097,1801.7,1801.6,1.6814]
[1745757654752,1.1097,1801.7,1801.6,2.79116]
[1745757655348,1.1097,1801.7,1801.6,1.6814]
[1745757656139,1.1097,1801.7,1801.6,2.79116]
[1745757656850,1.1097,1801.7,1801.6,1.6814]
[1745757657049,1.1097,1801.7,1801.6,2.79116]
[1745757657353,1.10969,1801.8,1801.7,1.1097]
[1745757657546,1.10969,1801.8,1801.7,1.6456]
[1745757657750,1.10969,1801.8,1801.7,2.7553]
[1745757657948,1.10963,1801.9,1801.8,1.10963]
[1745757658152,1.10963,1801.9,1801.8,1.6456]
[1745757660355,1.10976,1801.6,1801.5,6.52981]
[1745757660656,1.10976,1801.7,1801.6,1.10976]
[1745757660853,1.10976,1801.7,1801.5,5.42]
[1745757660854,1.10975,1801.7,1801.5,5.42]
[1745757661040,1.10976,1801.6,1801.5,6.52978]
[1745757661356,1.10975,1801.7,1801.6,1.10975]
[1745757661555,1.10976,1801.6,1801.5,6.5298]
[1745757661849,1.10962,1801.9,1801.8,1.10961]
[1745757663457,1.10967,1801.8,1801.7,1.10966]
[1745757663858,1.10962,1801.9,1801.8,1.10961]
[1745757665357,1.10962,1801.9,1801.8,1.10963]
[1745757665862,2.5359,1802.0,1801.6,5.9822]
[1745757666067,1.1096,1801.9,1801.8,1.10961]
[1745757667057,2.5359,1802.0,1801.6,5.9822]
[1745757667257,1.10962,1801.9,1801.8,1.10961]
[1745757667458,1.10967,1801.8,1801.7,1.10965]
[1745757667860,1.10969,1801.8,1801.7,1.10968]
[1745757669259,1.1097,1801.7,1801.6,4.31753]
[1745757669565,1.10969,1801.8,1801.7,1.10967]
[1745757669867,2.70299,1801.8,1801.7,1.10967]
[1745757670866,1.1097,1801.7,1801.6,4.31754]
[1745757672265,1.1097,1801.7,1801.6,4.8035]
[1745757672489,1.1097,1801.7,1801.6,5.91326]
[1745757672661,1.1097,1801.7,1801.6,1.5957]
[1745757673168,1.10976,1801.6,1801.5,2.80583]
[1745757673564,1.90276,1801.6,1801.5,2.80583]
[1745757673868,1.90276,1801.6,1801.5,1.696]
[1745757674167,1.90276,1801.6,1801.5,2.80583]
[1745757674370,1.90276,1801.6,1801.5,4.40563]
[1745757674568,1.90276,1801.6,1801.5,3.2958]
[1745757676172,1.90276,1801.6,1801.5,4.40563]
[1745757676371,1.90276,1801.6,1801.5,3.2958]
[1745757676571,1.90276,1801.6,1801.5,4.40563]
[1745757677169,1.90276,1801.6,1801.5,3.2958]
[1745757678067,1.10983,1801.5,1801.4,1.10984]
[1745757678272,1.90279,1801.6,1801.5,1.10983]
[1745757679572,1.90279,1801.6,1801.5,2.73833]
[1745757679774,1.7081,1801.7,1801.6,1.10976]
[1745757679973,1.10972,1801.7,1801.6,1.5996]
[1745757680968,0.8447,1802.0,1801.8,1.10964]
[1745757681171,3.2078,1802.1,1801.7,0.8607]
[1745757681475,1.10952,1802.0,1801.9,1.10953]
[1745757681772,5.998,1802.1,1802.0,1.10952]
[1745757681995,4.8885,1802.1,1802.0,1.10952]
[1745757682166,3.2078,1802.1,1802.0,1.97022]
[1745757682366,1.10946,1802.1,1802.0,1.97022]
[1745757682575,4.83344,1802.2,1802.0,0.8607]
[1745757682873,4.83344,1802.2,1802.1,1.7314]
[1745757683671,6.52984,1802.2,1802.1,1.7314]
[1745757684467,2.80584,1802.2,1802.1,1.7314]
[1745757686075,6.52784,1802.2,1802.1,1.7314]
[1745757687179,1.10946,1802.1,1802.0,0.8607]
[1745757687368,2.68356,1802.1,1802.0,1.97022]
[1745757688379,2.68356,1802.1,1802.0,0.8607]
[1745757689077,1.5741,1802.1,1802.0,1.97022]
[1745757689479,1.10939,1802.2,1802.1,1.10945]
[1745757689676,1.10939,1802.2,1802.1,2.82175]
[1745757689877,1.10939,1802.2,1802.1,1.7123]
[1745757690080,2.72999,1802.2,1802.1,1.7123]
[1745757691672,2.72999,1802.2,1802.1,2.82176]
[1745757691977,2.72999,1802.2,1802.1,1.7123]
[1745757692177,6.45199,1802.2,1802.1,1.7123]
[1745757692882,6.45199,1802.2,1802.1,2.82176]
[1745757693384,2.72999,1802.2,1802.1,1.7123]
[1745757694684,2.72999,1802.2,1802.1,2.82176]
[1745757695681,2.72999,1802.2,1802.1,1.7123]
[1745757696782,2.72999,1802.2,1802.1,2.82176]
[1745757696984,4.31717,1802.3,1802.2,1.10939]
[1745757697185,4.31717,1802.3,1802.2,3.65639]
[1745757697379,0.8112,1802.6,1802.3,2.77332]
[1745757697677,1.6916,1802.7,1802.4,2.5767]
[1745757697903,1.10918,1802.6,1802.5,43.62488]
[1745757698078,1.10918,1802.6,1802.5,41.90918]
[1745757698587,2.80073,1802.7,1802.6,1.10915]
[1745757698788,1.10915,1802.6,1802.5,41.90919]
[1745757699284,1.10915,1802.6,1802.5,40.8]
[1745757699685,1.10915,1802.6,1802.5,41.90921]
[1745757700479,0.8172,1802.8,1802.6,1.10911]
[1745757700680,1.10909,1802.7,1802.6,1.90231]
[1745757701885,1.10909,1802.7,1802.6,1.90235]
[1745757702282,2.77295,1802.6,1802.1,3.2078]
[1745757702476,1.10976,1801.6,1801.5,8.20504752]
[1745757702892,1.10976,1801.6,1801.5,7.41184752]
[1745757703690,1.6414,1801.7,1801.5,8.52167752]
[1745757703881,2.7511,1801.7,1801.5,7.41184752]
[1745757704086,2.7511,1801.7,1801.5,8.52166752]
[1745757704292,1.6414,1801.7,1801.6,1.10976]
[1745757704689,5.15698,1801.8,1801.6,1.10976]
[1745757704890,1.10972,1801.7,1801.5,9.37834752]
[1745757705085,1.10976,1801.6,1801.5,7.41184752]
[1745757705285,1.10983,1801.5,1801.4,41.5932]
[1745757705493,2.69323,1801.5,1801.4,41.5932]
[1745757706408,1.5834,1801.5,1801.4,41.5932]
[1745757706593,2.69323,1801.5,1801.4,41.5932]
[1745757709199,1.5834,1801.5,1801.4,42.70309]
[1745757709785,1.95093,1801.7,1801.5,1.1098]
[1745757710088,3.65553,1801.7,1801.5,1.1098]
[1745757710398,3.65552,1801.7,1801.5,1.10979]
[1745757710595,1.10976,1801.6,1801.5,1.10979]
[1745757710791,2.83806,1801.6,1801.5,1.10979]
[1745757710991,2.83806,1801.6,1801.4,42.70306]
[1745757712199,2.83806,1801.6,1801.4,44.30526]
[1745757712500,2.83806,1801.6,1801.5,1.10983]
[1745757712905,1.7283,1801.6,1801.5,1.10983]
[1745757714002,1.7283,1801.6,1801.5,2.78803]
[1745757714300,5.4503,1801.6,1801.5,2.78803]
[1745757714802,3.722,1801.6,1801.5,2.78803]
[1745757715201,4.0473,1801.8,1801.6,1.10971]
[1745757715502,1.6933,1801.7,1801.6,1.10971]
[1745757715703,2.803,1801.7,1801.6,1.10971]
[1745757716096,6.525,1801.7,1801.6,1.10971]
[1745757716296,3.722,1801.7,1801.6,1.10971]
[1745757717199,2.75259,1801.9,1801.8,1.10964]
[1745757717401,1.643,1801.9,1801.8,1.10964]
[1745757717602,2.75258,1801.9,1801.8,1.10964]
[1745757718806,2.75258,1801.9,1801.5,8.98539]
[1745757719003,2.75258,1801.9,1801.8,1.10964]
[1745757719504,1.643,1801.9,1801.8,1.10964]
[1745757719704,2.75258,1801.9,1801.8,1.10964]
[1745757720006,1.643,1801.9,1801.8,1.10964]
[1745757720206,4.8508,1801.9,1801.5,12.19319]
[1745757720404,5.96041,1801.9,1801.8,1.10964]
[1745757720606,1.10964,1801.8,1801.7,1.10967]
[1745757720807,1.733,1801.8,1801.7,1.10967]
[1745757726019,2.84264,1801.8,1801.7,1.10967]
[1745757726214,1.733,1801.8,1801.7,1.10967]
[1745757726818,2.84264,1801.8,1801.7,1.10967]
[1745757728519,1.733,1801.8,1801.7,1.10967]
[1745757728720,2.84264,1801.8,1801.7,1.10967]
[1745757729017,1.733,1801.8,1801.7,1.10967]
[1745757729817,0.8191,1802.0,1801.6,4.34839]
[1745757730121,1.6193,1802.3,1802.2,1.10939]
[1745757730319,4.44043,1802.3,1802.1,1.10941]
[1745757730921,4.44043,1802.3,1802.2,1.10939]
[1745757731222,8.16243,1802.3,1802.2,1.10939]
[1745757731623,7.0531,1802.3,1802.2,1.10939]
[1745757731826,5.4338,1802.3,1802.2,1.10939]
[1745757732024,3.722,1802.3,1802.2,1.10939]
[1745757733120,1.5722,1802.4,1802.3,1.10933]
[1745757734327,3.722,1802.4,1802.3,1.10933]
[1745757735126,3.9957,1802.5,1802.4,1.10927]
[1745757735423,4.8541,1802.5,1802.4,1.10927]